fUST/lending_fUST_20250708
["ID","MTS","AMOUNT","RATE_DAILY","PERIOD"]
[370326469,1751959841839,-99.90261881,0.00019452,2]
[370326475,1751959841885,-663.37738119,0.00019452,2]
[370326477,1751959841895,-663.78125254,0.00019452,2]
[370326516,1751959843354,-460.0,0.00019178,2]
[370326518,1751959843364,-828.82874746,0.00019452,2]
[370326520,1751959843373,-489.23,0.00019452,2]
[370326522,1751959843383,-460.0,0.00019452,2]
[370326523,1751959843393,-1367.81,0.00019452,2]
[370326524,1751959843403,-687.32,0.00019452,2]
[370326525,1751959843413,-541.0065748,0.00019452,2]
[370326526,1751959843424,-1281.9634252,0.00019452,2]
[370326527,1751959843434,-460.0,0.00019452,2]
[370326528,1751959843443,-460.0,0.00019452,2]
[370326529,1751959843453,-460.0,0.00019452,2]
[370326530,1751959843464,-460.0,0.00019452,2]
[370326531,1751959843475,-460.0,0.00019452,2]
[370326533,1751959843483,-968.09,0.00019452,2]
[370326535,1751959843493,-642.77438341,0.00019452,2]
[370326541,1751959843690,-471.35561659,0.00019452,2]
[370326542,1751959843699,-460.0,0.00019452,2]
[370326543,1751959843709,-460.0,0.00019452,2]
[370326544,1751959843718,-1473.83,0.00019452,2]
[370326545,1751959843727,-460.0,0.00019452,2]
[370326546,1751959843736,-861.46,0.00019452,2]
[370326547,1751959843746,-511.68,0.00019452,2]
[370326548,1751959843755,-460.0,0.00019452,2]
[370326549,1751959843765,-460.0,0.00019452,2]
[370326550,1751959843774,-460.0,0.00019452,2]
[370326551,1751959843783,-246.76050787,0.00019452,2]
[370326555,1751959846254,-460.0,0.00019178,2]
[370326557,1751959846264,-343.62949213,0.00019452,2]
[370326559,1751959846273,-460.0,0.00019452,2]
[370326560,1751959846284,-275.15472427,0.00019452,2]
[370326561,1751959846293,-460.82581725,0.00019452,2]
[370326562,1751959846306,-279.06418275,0.00019452,2]
[370326563,1751959846315,-460.0,0.00019452,2]
[370326564,1751959846325,-460.0,0.00019452,2]
[370326565,1751959846334,-460.0,0.00019452,2]
[370326566,1751959846343,-1000.57,0.00019452,2]
[370326567,1751959846353,-719.98,0.00019452,2]
[370326568,1751959846362,-668.37,0.00019452,2]
[370326569,1751959846372,-460.0,0.00019452,2]
[370326570,1751959846381,-460.0,0.00019452,2]
[370326571,1751959846390,-1777.31,0.00019452,2]
[370326572,1751959846399,-410.69066744,0.00019452,2]
[370326573,1751959846409,-460.0,0.00019452,2]
[370326574,1751959846418,-460.0,0.00019452,2]
[370326575,1751959846428,-460.0,0.00019452,2]
[370326576,1751959846438,-772.99,0.00019452,2]
[370326577,1751959846447,-516.13,0.00019452,2]
[370326578,1751959846456,-460.0,0.00019452,2]
[370326579,1751959846468,-460.0,0.00019452,2]
[370326581,1751959846477,-460.0,0.00019452,2]
[370326582,1751959846486,-306.0,0.000195,2]
[370326583,1751959846495,-552.31146217,0.00019699,2]
[370326584,1751959846504,-151.0,0.00019726,2]
[370326585,1751959846514,-460.0,0.00019726,2]
[370326586,1751959846525,-460.0,0.00019726,2]
[370326587,1751959846534,-154.226096,0.00019726,2]
[370326588,1751959846545,-283.78124449,0.00019726,2]
[370326589,1751959846555,-460.0,0.00019726,2]
[370326590,1751959846564,-460.0,0.00019726,2]
[370326591,1751959846573,-460.0,0.00019726,2]
[370326592,1751959846582,-460.0,0.00019726,2]
[370326593,1751959846591,-460.0,0.00019726,2]
[370326594,1751959846601,-2082.23,0.00019726,2]
[370326595,1751959846610,-460.0,0.00019726,2]
[370326596,1751959846620,-754.17,0.00019726,2]
[370326597,1751959846629,-151.0,0.00019726,2]
[370326598,1751959846639,-763.28,0.00019726,2]
[370326599,1751959846648,-1492.61,0.00019726,2]
[370326600,1751959846657,-151.0,0.00019726,2]
[370326601,1751959846667,-489.23,0.00019726,2]
[370326602,1751959846676,-460.0,0.00019726,2]
[370326603,1751959846687,-1367.81,0.00019726,2]
[370326604,1751959846696,-687.32,0.00019726,2]
[370326605,1751959846707,-1822.97,0.00019726,2]
[370326606,1751959846717,-460.0,0.00019726,2]
[370326607,1751959846726,-460.0,0.00019726,2]
[370326608,1751959846737,-460.0,0.00019726,2]
[370326609,1751959846748,-460.0,0.00019726,2]
[370326610,1751959846757,-460.0,0.00019726,2]
[370326611,1751959846767,-151.0,0.00019726,2]
[370326612,1751959846776,-968.09,0.00019726,2]
[370326613,1751959846785,-1114.13,0.00019726,2]
[370326614,1751959846795,-151.0,0.00019726,2]
[370326615,1751959846804,-151.0,0.00019726,2]
[370326616,1751959846813,-460.0,0.00019726,2]
[370326617,1751959846823,-460.0,0.00019726,2]
[370326618,1751959846832,-1473.83,0.00019726,2]
[370326619,1751959846841,-460.0,0.00019726,2]
[370326620,1751959846850,-861.46,0.00019726,2]
[370326621,1751959846859,-511.68,0.00019726,2]
[370326622,1751959846868,-460.0,0.00019726,2]
[370326623,1751959846878,-460.0,0.00019726,2]
[370326624,1751959846887,-460.0,0.00019726,2]
[370326625,1751959846897,-590.39,0.00019726,2]
[370326626,1751959846906,-460.0,0.00019726,2]
[370326627,1751959846915,-739.89,0.00019726,2]
[370326628,1751959846924,-460.0,0.00019726,2]
[370326629,1751959846933,-460.0,0.00019726,2]
[370326630,1751959846942,-460.0,0.00019726,2]
[370326631,1751959846952,-1000.57,0.00019726,2]
[370326632,1751959846962,-719.98,0.00019726,2]
[370326633,1751959846971,-668.37,0.00019726,2]
[370326634,1751959846980,-155.82804629,0.00019726,2]
[370326635,1751959846993,-304.17195371,0.00019726,2]
[370326636,1751959847004,-460.0,0.00019726,2]
[370326637,1751959847013,-635.82804629,0.00019726,2]
[370326638,1751959847025,-698.14751802,0.00019726,2]
[370326639,1751959847037,-443.33443569,0.00019726,2]
[370326640,1751959847046,-460.0,0.00019726,2]
[370326641,1751959847055,-460.0,0.00019726,2]
[370326642,1751959847064,-460.0,0.00019726,2]
[370326643,1751959847074,-772.99,0.00019726,2]
[370326644,1751959847083,-151.0,0.00019726,2]
[370326645,1751959847093,-516.13,0.00019726,2]
[370326646,1751959847102,-460.0,0.00019726,2]
[370326647,1751959847111,-460.0,0.00019726,2]
[370326648,1751959847121,-272.323,0.00019747,2]
[370326649,1751959847130,-9325.90829587,0.000198,2]
[370326650,1751959847146,-795.61375639,0.000198,2]
[370326651,1751959847158,-272.19120742,0.000198,2]
[370326653,1751960194765,195.066537,0.00017778,2]
[370326686,1751961032642,-425.66926934,0.0001839,2]
[370326687,1751961032656,-305.61500749,0.0001839,2]
[370326688,1751961032669,-654.656,0.0001839,2]
[370326689,1751961032714,-3614.05972317,0.0001839,2]
[370326690,1751961032723,-200.0,0.00018764,2]
[370326691,1751961032733,-288.0,0.00018771,2]
[370326692,1751961032743,-1200.0,0.00018771,2]
[370326693,1751961032752,-300.0,0.00018771,2]
[370326694,1751961032762,-300.0,0.00018771,2]
[370326695,1751961032772,-8260.23524834,0.00018775,2]
[370326696,1751961032781,-217.34392274,0.00018775,2]
[370326697,1751961032790,-500.0,0.00018775,2]
[370326698,1751961032800,-156.39467172,0.00018775,2]
[370326699,1751961032809,-411.8944539,0.00018775,2]
[370326700,1751961032819,-500.0,0.00018775,2]
[370326701,1751961032828,-421.87166677,0.00018775,2]
[370326702,1751961032838,-69541.86289155,0.00018776,2]
[370326703,1751961032850,-13000.0,0.00018776,2]
[370326704,1751961032862,-4043.37892838,0.00018776,2]
[370326707,1751961032884,-353.79393509,0.00018776,2]
[370326710,1751961032895,-4809.79999999,0.00018776,2]
[370326712,1751961032907,-3403.5080739,0.00018776,2]
[370326714,1751961032917,-596.78919064,0.000188,2]
[370326716,1751961032926,-230.38260164,0.000189,2]
[370326718,1751961032936,-209.0,0.00018996,2]
[370326720,1751961032946,-151.0,0.00019074,2]
[370326722,1751961032955,-215.39348124,0.00019078,2]
[370326724,1751961032965,-207.4,0.00019082,2]
[370326726,1751961032974,-151.0,0.00019166,2]
[370326728,1751961032984,-151.0,0.00019166,2]
[370326730,1751961032993,-228.08628352,0.00019166,2]
[370326732,1751961033003,-188.51391556,0.00019166,2]
[370326734,1751961033013,-7353.84612605,0.00019166,2]
[370327109,1751961038731,-17646.15387395,0.00019166,2]
[370327110,1751961038741,-325.84,0.00019167,3]
[370327111,1751961038751,-500.0,0.00019173,2]
[370327112,1751961038761,-500.0,0.00019173,2]
[370327113,1751961038770,-500.0,0.00019173,2]
[370327114,1751961038780,-501.08878745,0.00019173,2]
[370327115,1751961038790,-500.0,0.00019173,2]
[370327116,1751961038803,-500.0,0.00019173,2]
[370327117,1751961038814,-500.0,0.00019173,2]
[370327118,1751961038824,-503.36372437,0.00019173,2]
[370327119,1751961038835,-500.0,0.00019173,2]
[370327120,1751961038846,-500.0,0.00019173,2]
[370327121,1751961038857,-502.03565214,0.00019173,2]
[370327122,1751961038869,-500.0,0.00019173,2]
[370327123,1751961038880,-501.35861156,0.00019173,2]
[370327124,1751961038890,-500.0,0.00019173,2]
[370327125,1751961038900,-500.0,0.00019173,2]
[370327126,1751961038909,-500.0,0.00019177,2]
[370327127,1751961038918,-266.83473657,0.00019177,2]
[370327128,1751961038928,-500.0,0.00019177,2]
[370327129,1751961038937,-500.0,0.00019177,2]
[370327130,1751961038947,-500.0,0.00019177,2]
[370327131,1751961038956,-500.0,0.00019177,2]
[370327132,1751961038967,-500.0,0.00019177,2]
[370327133,1751961038976,-391.51938047,0.00019177,2]
[370327134,1751961038987,-500.0,0.00019177,2]
[370327135,1751961038997,-500.0,0.00019177,2]
[370327136,1751961039008,-250.0,0.00019177,2]
[370327137,1751961039018,-190.50030545,0.00019178,2]
[370327138,1751961039027,-2390.6222383,0.00019178,2]
[370327139,1751961040096,-842.59519653,0.00019178,2]
[370327140,1751961040106,-166.09696444,0.00019178,2]
[370327141,1751961040350,-293.90303556,0.00019178,2]
[370327142,1751961040360,-460.0,0.00019178,2]
[370327143,1751961040369,-78.3399093,0.00019178,2]
[370327144,1751961040381,-381.6600907,0.00019178,2]
[370327145,1751961040390,-343.09129831,0.00019178,2]
[370327233,1751961044012,-3139.41,0.00018986,2]
[370327239,1751961046662,-219.99339653,0.00018986,2]
[370327240,1751961046675,-1640.59660347,0.00018986,2]
[370327241,1751961046684,-116.90870169,0.00019178,2]
[370327242,1751961046694,-460.0,0.00019178,2]
[370327243,1751961046703,-471.70408772,0.00019178,2]
[370327244,1751961046713,-484.37888187,0.00019178,2]
[370327245,1751961046723,-460.0,0.00019178,2]
[370327246,1751961046732,-230.08284067,0.00019178,2]
[370327247,1751961046741,-460.0,0.00019178,2]
[370327248,1751961046751,-460.0,0.00019178,2]
[370327249,1751961046761,-460.0,0.00019178,2]
[370327250,1751961046770,-460.0,0.00019178,2]
[370327251,1751961046780,-460.0,0.00019178,2]
[370327252,1751961046790,-551.37016986,0.00019178,2]
[370327253,1751961046801,-460.0,0.00019178,2]
[370327254,1751961046813,-465.40902764,0.00019178,2]
[370327255,1751961046823,-151.0,0.00019178,2]
[370327256,1751961046833,-460.0,0.00019178,2]
[370327258,1751961046843,-460.0,0.00019178,2]
[370327259,1751961046852,-460.0,0.00019178,2]
[370327260,1751961046862,-460.0,0.00019178,2]
[370327261,1751961046872,-460.0,0.00019178,2]
[370327262,1751961046881,-460.0,0.00019178,2]
[370327263,1751961046890,-460.0,0.00019178,2]
[370327264,1751961046899,-460.0,0.00019178,2]
[370327265,1751961046909,-202.853009,0.00019178,2]
[370327266,1751961046918,-541.68577503,0.00019178,2]
[370327267,1751961046927,-460.0,0.00019178,2]
[370327268,1751961046937,-460.0,0.00019178,2]
[370327269,1751961046946,-202.853009,0.00019178,2]
[370327270,1751961046955,-599.73930018,0.00019178,2]
[370327271,1751961046965,-460.0,0.00019178,2]
[370327272,1751961046974,-460.0,0.00019178,2]
[370327273,1751961046983,-460.0,0.00019178,2]
[370327274,1751961046993,-460.0,0.00019178,2]
[370327275,1751961047002,-151.0,0.00019178,2]
[370327276,1751961047011,-566.70916388,0.00019178,2]
[370327277,1751961047020,-466.00357287,0.00019178,2]
[370327278,1751961047030,-546.25941351,0.00019178,2]
[370327279,1751961047039,-550.07391382,0.00019178,2]
[370327280,1751961047049,-460.0,0.00019178,2]
[370327281,1751961047058,-460.0,0.00019178,2]
[370327282,1751961047067,-460.0,0.00019178,2]
[370327283,1751961047075,-460.0,0.00019178,2]
[370327284,1751961047085,-460.0,0.00019178,2]
[370327285,1751961047094,-461.878899,0.00019178,2]
[370327286,1751961047103,-460.0,0.00019178,2]
[370327287,1751961047117,-460.0,0.00019178,2]
[370327288,1751961047126,-460.0,0.00019178,2]
[370327289,1751961047135,-460.0,0.00019178,2]
[370327290,1751961047145,-325.80080834,0.00019178,2]
[370327291,1751961047154,-584.79773895,0.00019178,2]
[370327292,1751961047164,-460.0,0.00019178,2]
[370327293,1751961047173,-301.60398194,0.00019178,2]
[370327294,1751961047183,-460.0,0.00019178,2]
[370327295,1751961047194,-460.0,0.00019178,2]
[370327296,1751961047203,-249.12237888,0.00019178,2]
[370327297,1751961047213,-502.02128124,0.00019178,2]
[370327298,1751961047222,-460.0,0.00019178,2]
[370327299,1751961047231,-406.47889537,0.00019178,2]
[370327300,1751961047241,-513.66573264,0.00019178,2]
[370327301,1751961047250,-460.0,0.00019178,2]
[370327302,1751961047260,-234.62,0.00019178,2]
[370327303,1751961047269,-460.0,0.00019178,2]
[370327304,1751961047279,-460.0,0.00019178,2]
[370327305,1751961047289,-460.0,0.00019178,2]
[370327306,1751961047299,-460.0,0.00019178,2]
[370327307,1751961047308,-460.0,0.00019178,2]
[370327308,1751961047318,-460.0,0.00019178,2]
[370327309,1751961047327,-460.0,0.00019178,2]
[370327310,1751961047337,-460.0,0.00019178,2]
[370327311,1751961047346,-573.79932887,0.00019178,2]
[370327312,1751961047356,-464.44589036,0.00019178,2]
[370327313,1751961047366,-460.0,0.00019178,2]
[370327314,1751961047376,-460.0,0.00019178,2]
[370327315,1751961047386,-460.0,0.00019178,2]
[370327316,1751961047396,-321.33886926,0.00019178,2]
[370327317,1751961047406,-460.0,0.00019178,2]
[370327318,1751961047416,-151.0,0.00019178,2]
[370327319,1751961047425,-151.0,0.00019178,2]
[370327320,1751961047435,-460.0,0.00019178,2]
[370327321,1751961047444,-460.0,0.00019178,2]
[370327322,1751961047454,-460.0,0.00019178,2]
[370327323,1751961047464,-487.89087882,0.00019178,2]
[370327324,1751961047474,-460.0,0.00019178,2]
[370327325,1751961047483,-460.0,0.00019178,2]
[370327326,1751961047493,-460.0,0.00019178,2]
[370327327,1751961047503,-151.0,0.00019178,2]
[370327328,1751961047513,-460.0,0.00019178,2]
[370327329,1751961047523,-151.0,0.00019178,2]
[370327330,1751961047532,-465.38490856,0.00019178,2]
[370327331,1751961047543,-460.0,0.00019178,2]
[370327332,1751961047552,-460.0,0.00019178,2]
[370327333,1751961047562,-507.32139542,0.00019178,2]
[370327334,1751961047572,-460.0,0.00019178,2]
[370327335,1751961047581,-460.0,0.00019178,2]
[370327336,1751961047591,-460.0,0.00019178,2]
[370327337,1751961047601,-460.0,0.00019178,2]
[370327338,1751961047610,-460.0,0.00019178,2]
[370327339,1751961047620,-460.0,0.00019178,2]
[370327340,1751961047629,-460.0,0.00019178,2]
[370327341,1751961047639,-460.0,0.00019178,2]
[370327342,1751961047648,-460.0,0.00019178,2]
[370327343,1751961047658,-460.0,0.00019178,2]
[370327344,1751961047667,-460.0,0.00019178,2]
[370327345,1751961047677,-460.0,0.00019178,2]
[370327346,1751961047686,-460.0,0.00019178,2]
[370327347,1751961047696,-165.265063,0.00019178,2]
[370327348,1751961047705,-460.0,0.00019178,2]
[370327349,1751961047714,-165.265063,0.00019178,2]
[370327350,1751961047724,-460.0,0.00019178,2]
[370327351,1751961047733,-460.0,0.00019178,2]
[370327352,1751961047743,-165.265063,0.00019178,2]
[370327353,1751961047752,-500.0,0.00019178,2]
[370327354,1751961047762,-165.265063,0.00019178,2]
[370327355,1751961047771,-463.13298037,0.00019178,2]
[370327356,1751961047781,-460.0,0.00019178,2]
[370327357,1751961047791,-460.0,0.00019178,2]
[370327358,1751961047800,-384.78025812,0.00019178,2]
[370327359,1751961047809,-460.0,0.00019178,2]
[370327360,1751961047818,-508.90196048,0.00019178,2]
[370327361,1751961047828,-460.0,0.00019178,2]
[370327362,1751961047837,-460.0,0.00019178,2]
[370327363,1751961047847,-460.0,0.00019178,2]
[370327364,1751961047856,-460.0,0.00019178,2]
[370327365,1751961047865,-460.0,0.00019178,2]
[370327366,1751961047875,-460.0,0.00019178,2]
[370327367,1751961047884,-460.0,0.00019178,2]
[370327368,1751961047893,-460.0,0.00019178,2]
[370327369,1751961047903,-317.44962947,0.00019178,2]
[370327370,1751961047912,-460.0,0.00019178,2]
[370327371,1751961047921,-460.0,0.00019178,2]
[370327372,1751961047930,-460.0,0.00019178,2]
[370327373,1751961047939,-460.0,0.00019178,2]
[370327374,1751961047949,-460.0,0.00019178,2]
[370327375,1751961047958,-460.0,0.00019178,2]
[370327376,1751961047967,-460.0,0.00019178,2]
[370327377,1751961047976,-460.0,0.00019178,2]
[370327378,1751961047985,-460.0,0.00019178,2]
[370327379,1751961047994,-460.0,0.00019178,2]
[370327380,1751961048004,-460.0,0.00019178,2]
[370327381,1751961048013,-460.0,0.00019178,2]
[370327382,1751961048023,-460.0,0.00019178,2]
[370327383,1751961048032,-460.0,0.00019178,2]
[370327384,1751961048043,-460.0,0.00019178,2]
[370327385,1751961048053,-460.0,0.00019178,2]
[370327386,1751961048064,-460.0,0.00019178,2]
[370327387,1751961048074,-460.0,0.00019178,2]
[370327388,1751961048084,-460.0,0.00019178,2]
[370327389,1751961048094,-151.0,0.00019178,2]
[370327390,1751961048103,-504.6495446,0.00019178,2]
[370327391,1751961048113,-460.0,0.00019178,2]
[370327392,1751961048125,-460.0,0.00019178,2]
[370327393,1751961048134,-460.0,0.00019178,2]
[370327394,1751961048144,-460.0,0.00019178,2]
[370327395,1751961048153,-460.0,0.00019178,2]
[370327396,1751961048164,-506.14470034,0.00019178,2]
[370327397,1751961048173,-460.0,0.00019178,2]
[370327398,1751961048183,-460.0,0.00019178,2]
[370327399,1751961048193,-460.0,0.00019178,2]
[370327400,1751961048202,-460.0,0.00019178,2]
[370327401,1751961048212,-393.94794961,0.00019178,2]
[370327402,1751961048222,-460.0,0.00019178,2]
[370327403,1751961048232,-460.0,0.00019178,2]
[370327404,1751961048243,-460.0,0.00019178,2]
[370327405,1751961048252,-460.0,0.00019178,2]
[370327406,1751961048262,-460.0,0.00019178,2]
[370327407,1751961048272,-460.0,0.00019178,2]
[370327408,1751961048281,-460.0,0.00019178,2]
[370327409,1751961048291,-460.0,0.00019178,2]
[370327410,1751961048300,-460.0,0.00019178,2]
[370327411,1751961048310,-500.0,0.00019178,2]
[370327412,1751961048320,-460.0,0.00019178,2]
[370327413,1751961048330,-460.0,0.00019178,2]
[370327414,1751961048339,-460.0,0.00019178,2]
[370327415,1751961048349,-460.0,0.00019178,2]
[370327416,1751961048358,-460.0,0.00019178,2]
[370327417,1751961048368,-460.0,0.00019178,2]
[370327418,1751961048378,-460.0,0.00019178,2]
[370327419,1751961048387,-460.0,0.00019178,2]
[370327420,1751961048397,-460.0,0.00019178,2]
[370327421,1751961048407,-460.0,0.00019178,2]
[370327422,1751961048416,-462.05148654,0.00019178,2]
[370327423,1751961048426,-460.0,0.00019178,2]
[370327424,1751961048435,-460.0,0.00019178,2]
[370327425,1751961048445,-460.0,0.00019178,2]
[370327426,1751961048455,-1306.04,0.00019178,2]
[370327427,1751961048464,-460.0,0.00019178,2]
[370327428,1751961048474,-460.0,0.00019178,2]
[370327429,1751961048484,-460.0,0.00019178,2]
[370327430,1751961048494,-460.0,0.00019178,2]
[370327431,1751961048504,-291.93947506,0.00019178,2]
[370327432,1751961048513,-460.0,0.00019178,2]
[370327433,1751961048523,-460.0,0.00019178,2]
[370327434,1751961048532,-504.59050255,0.00019178,2]
[370327435,1751961048542,-460.0,0.00019178,2]
[370327436,1751961048552,-460.0,0.00019178,2]
[370327437,1751961048562,-460.0,0.00019178,2]
[370327438,1751961048572,-460.0,0.00019178,2]
[370327439,1751961048581,-460.0,0.00019178,2]
[370327440,1751961048591,-587.33409063,0.00019178,2]
[370327441,1751961048600,-468.21526199,0.00019178,2]
[370327442,1751961048609,-460.0,0.00019178,2]
[370327443,1751961048618,-460.0,0.00019178,2]
[370327444,1751961048628,-460.0,0.00019178,2]
[370327445,1751961048638,-460.0,0.00019178,2]
[370327446,1751961048647,-460.0,0.00019178,2]
[370327447,1751961048657,-460.0,0.00019178,2]
[370327448,1751961048667,-460.0,0.00019178,2]
[370327449,1751961048677,-460.0,0.00019178,2]
[370327450,1751961048686,-717.39,0.00019178,2]
[370327451,1751961048696,-460.0,0.00019178,2]
[370327452,1751961048706,-460.0,0.00019178,2]
[370327453,1751961048716,-151.0,0.00019178,2]
[370327454,1751961048726,-557.59834504,0.00019178,2]
[370327455,1751961048735,-257.82206,0.00019178,2]
[370327456,1751961048745,-291.96771892,0.00019178,2]
[370327457,1751961048755,-460.0,0.00019178,2]
[370327458,1751961048764,-460.0,0.00019178,2]
[370327459,1751961048774,-460.0,0.00019178,2]
[370327460,1751961048783,-463.92634174,0.00019178,2]
[370327461,1751961048793,-460.0,0.00019178,2]
[370327462,1751961048802,-460.0,0.00019178,2]
[370327463,1751961048812,-460.0,0.00019178,2]
[370327464,1751961048821,-460.0,0.00019178,2]
[370327465,1751961048831,-460.0,0.00019178,2]
[370327466,1751961048840,-460.0,0.00019178,2]
[370327467,1751961048849,-460.0,0.00019178,2]
[370327468,1751961048858,-460.0,0.00019178,2]
[370327469,1751961048987,-500.0,0.00019178,2]
[370327470,1751961048997,-460.0,0.00019178,2]
[370327471,1751961049006,-466.03548314,0.00019178,2]
[370327472,1751961049016,-460.0,0.00019178,2]
[370327473,1751961049025,-2168.19,0.00019178,2]
[370327474,1751961049035,-460.0,0.00019178,2]
[370327475,1751961049045,-460.0,0.00019178,2]
[370327476,1751961049054,-460.0,0.00019178,2]
[370327477,1751961049063,-460.0,0.00019178,2]
[370327478,1751961049073,-460.0,0.00019178,2]
[370327479,1751961049082,-1490.25,0.00019178,2]
[370327480,1751961049091,-237.35302004,0.00019178,2]
[370327481,1751961049102,-460.0,0.00019178,2]
[370327482,1751961049113,-460.0,0.00019178,2]
[370327483,1751961049125,-460.0,0.00019178,2]
[370327484,1751961049134,-460.0,0.00019178,2]
[370327485,1751961049143,-460.0,0.00019178,2]
[370327486,1751961049153,-460.0,0.00019178,2]
[370327487,1751961049163,-460.0,0.00019178,2]
[370327488,1751961049173,-460.0,0.00019178,2]
[370327489,1751961049182,-460.0,0.00019178,2]
[370327490,1751961049191,-460.0,0.00019178,2]
[370327491,1751961049200,-460.0,0.00019178,2]
[370327492,1751961049209,-460.0,0.00019178,2]
[370327493,1751961049219,-460.0,0.00019178,2]
[370327494,1751961049228,-460.0,0.00019178,2]
[370327495,1751961049238,-1157.31,0.00019178,2]
[370327496,1751961049247,-460.0,0.00019178,2]
[370327497,1751961049258,-460.0,0.00019178,2]
[370327498,1751961049268,-151.0,0.00019178,2]
[370327499,1751961049278,-151.0,0.00019178,2]
[370327500,1751961049289,-200.532895,0.00019178,2]
[370327501,1751961049299,-460.0,0.00019178,2]
[370327502,1751961049309,-460.0,0.00019178,2]
[370327503,1751961049319,-460.0,0.00019178,2]
[370327504,1751961049329,-460.0,0.00019178,2]
[370327505,1751961049338,-460.0,0.00019178,2]
[370327506,1751961049348,-460.0,0.00019178,2]
[370327507,1751961049358,-460.0,0.00019178,2]
[370327508,1751961049367,-460.0,0.00019178,2]
[370327509,1751961049377,-460.0,0.00019178,2]
[370327510,1751961049386,-460.0,0.00019178,2]
[370327511,1751961049396,-460.0,0.00019178,2]
[370327512,1751961049406,-460.0,0.00019178,2]
[370327513,1751961049415,-572.89,0.00019178,2]
[370327514,1751961049424,-460.0,0.00019178,2]
[370327515,1751961049434,-558.77184396,0.00019178,2]
[370327516,1751961049444,-460.0,0.00019178,2]
[370327517,1751961049453,-460.0,0.00019178,2]
[370327518,1751961049463,-460.0,0.00019178,2]
[370327519,1751961049473,-460.0,0.00019178,2]
[370327520,1751961049483,-460.0,0.00019178,2]
[370327521,1751961049493,-460.0,0.00019178,2]
[370327522,1751961049502,-460.0,0.00019178,2]
[370327523,1751961049512,-1424.83,0.00019178,2]
[370327524,1751961049523,-460.0,0.00019178,2]
[370327525,1751961049533,-460.0,0.00019178,2]
[370327526,1751961049543,-460.0,0.00019178,2]
[370327527,1751961049553,-460.0,0.00019178,2]
[370327528,1751961049563,-594.71492387,0.00019178,2]
[370327529,1751961049573,-460.0,0.00019178,2]
[370327530,1751961049583,-526.14618467,0.00019178,2]
[370327531,1751961049593,-460.0,0.00019178,2]
[370327532,1751961049602,-460.0,0.00019178,2]
[370327533,1751961049611,-460.0,0.00019178,2]
[370327534,1751961049621,-460.0,0.00019178,2]
[370327535,1751961049630,-460.0,0.00019178,2]
[370327536,1751961049639,-460.0,0.00019178,2]
[370327537,1751961049649,-460.0,0.00019178,2]
[370327538,1751961049658,-1692.64,0.00019178,2]
[370327539,1751961049668,-462.94639374,0.00019178,2]
[370327540,1751961049677,-1201.15,0.00019178,2]
[370327541,1751961049687,-460.0,0.00019178,2]
[370327542,1751961049696,-460.0,0.00019178,2]
[370327543,1751961049705,-460.0,0.00019178,2]
[370327544,1751961049715,-460.0,0.00019178,2]